[Event "December 12 Late 2023"]
[Site "https://www.chess.com"]
[Date "2023.12.12"]
[Round "1"]
[White "Jaracz, Pawel"]
[Black "Biliy, Vadim"]
[Result "1-0"]
[Board "107"]
[TimeControl "180+1"]
[WhiteFideId "1102222"]
[BlackFideId "14114127"]
[WhiteElo "2636"]
[BlackElo "2298"]
[WhiteTeam "POL"]
[BlackTeam "UKR"]
[WhiteClock "0:01:09"]
[BlackClock "0:00:00"]

1. d4 {[%clk 0:02:53]}  c5 {[%clk 0:02:56]} 2. d5 {[%clk 0:02:53]}  f5 {[%clk 0:02:55]} 3. Nh3 {[%clk 0:02:47]}  Nf6 {[%clk 0:02:54]} 4. Nf4 {[%clk 0:02:45]}  g6 {[%clk 0:02:52]} 5. g3 {[%clk 0:02:43]}  Bg7 {[%clk 0:02:51]} 6. Bg2 {[%clk 0:02:43]}  O-O {[%clk 0:02:50]} 7. O-O {[%clk 0:02:43]}  b5 {[%clk 0:02:44]} 8. a4 {[%clk 0:02:42]}  b4 {[%clk 0:02:40]} 9. Nd2 {[%clk 0:02:39]}  Bb7 {[%clk 0:02:38]} 10. Nc4 {[%clk 0:02:39]}  a5 {[%clk 0:02:10]} 11. c3 {[%clk 0:02:04]}  Ra7 {[%clk 0:02:05]} 12. Be3 {[%clk 0:02:01]}  Na6 {[%clk 0:02:04]} 13. cxb4 {[%clk 0:01:50]}  axb4 {[%clk 0:02:02]} 14. a5 {[%clk 0:01:49]}  Ne4 {[%clk 0:01:45]} 15. Qc2 {[%clk 0:01:45]}  Nd6 {[%clk 0:01:17]} 16. Nb6 {[%clk 0:01:40]}  g5 {[%clk 0:00:55]} 17. Nd3 {[%clk 0:01:34]}  f4 {[%clk 0:00:42]} 18. gxf4 {[%clk 0:01:23]}  gxf4 {[%clk 0:00:42]} 19. Bxf4 {[%clk 0:01:23]}  c4 {[%clk 0:00:37]} 20. Nxc4 {[%clk 0:01:21]}  Nxc4 {[%clk 0:00:28]} 21. Qxc4 {[%clk 0:01:21]}  Kh8 {[%clk 0:00:19]} 22. Bg3 {[%clk 0:01:17]}  Qa8 {[%clk 0:00:18]} 23. Ne5 {[%clk 0:01:15]}  Rc8 {[%clk 0:00:13]} 24. Qh4 {[%clk 0:01:12]}  Bxd5 {[%clk 0:00:10]} 25. Ng6+ {[%clk 0:01:12]}  Kg8 {[%clk 0:00:09]} 26. Nxe7+ {[%clk 0:01:13]}  Kh8 {[%clk 0:00:09]} 27. Bxd5 {[%clk 0:01:13]}  Qb8 {[%clk 0:00:00]} 28. Be4 {[%clk 0:01:09]} 1-0

[Event "December 12 Late 2023"]
[Site "https://www.chess.com"]
[Date "2023.12.12"]
[Round "1"]
[White "Kornyukov, Alexey"]
[Black "Gubajdullin, Alexei"]
[Result "1-0"]
[Board "108"]
[TimeControl "180+1"]
[WhiteFideId "4150457"]
[BlackFideId "4141202"]
[WhiteElo "2296"]
[BlackElo "2632"]
[WhiteTeam "RUS"]
[BlackTeam "RUS"]
[WhiteClock "0:00:12"]
[BlackClock "0:00:31"]

1. d4 {[%clk 0:03:00]}  Nf6 {[%clk 0:02:59]} 2. c4 {[%clk 0:03:00]}  g6 {[%clk 0:02:58]} 3. f3 {[%clk 0:02:59]}  Bg7 {[%clk 0:02:57]} 4. e4 {[%clk 0:02:59]}  d6 {[%clk 0:02:57]} 5. Nc3 {[%clk 0:02:57]}  O-O {[%clk 0:02:57]} 6. Bg5 {[%clk 0:02:56]}  h6 {[%clk 0:02:54]} 7. Be3 {[%clk 0:02:55]}  c5 {[%clk 0:02:54]} 8. d5 {[%clk 0:02:54]}  e6 {[%clk 0:02:54]} 9. Qd2 {[%clk 0:02:54]}  exd5 {[%clk 0:02:54]} 10. cxd5 {[%clk 0:02:54]}  h5 {[%clk 0:02:54]} 11. a4 {[%clk 0:02:51]}  Na6 {[%clk 0:02:53]} 12. Bc4 {[%clk 0:02:45]}  Nb4 {[%clk 0:02:52]} 13. Nge2 {[%clk 0:02:45]}  Nd7 {[%clk 0:02:51]} 14. f4 {[%clk 0:02:42]}  Nb6 {[%clk 0:02:47]} 15. Bb3 {[%clk 0:02:40]}  c4 {[%clk 0:02:46]} 16. Bc2 {[%clk 0:02:39]}  f5 {[%clk 0:02:44]} 17. a5 {[%clk 0:02:29]}  Nd7 {[%clk 0:02:41]} 18. Bb1 {[%clk 0:02:21]}  Nf6 {[%clk 0:02:30]} 19. exf5 {[%clk 0:02:12]}  Bxf5 {[%clk 0:02:29]} 20. Bxf5 {[%clk 0:02:10]}  gxf5 {[%clk 0:02:29]} 21. O-O {[%clk 0:02:09]}  Qe8 {[%clk 0:02:27]} 22. Nd4 {[%clk 0:02:00]}  Ng4 {[%clk 0:02:23]} 23. Ne6 {[%clk 0:01:47]}  Nc2 {[%clk 0:02:12]} 24. Rae1 {[%clk 0:01:22]}  Ngxe3 {[%clk 0:02:05]} 25. Rxe3 {[%clk 0:01:21]}  Bd4 {[%clk 0:01:59]} 26. Rf3 {[%clk 0:01:02]}  Bxe3+ {[%clk 0:01:53]} 27. Rxe3 {[%clk 0:01:02]}  Nxe3 {[%clk 0:01:53]} 28. Qxe3 {[%clk 0:01:02]}  Rf6 {[%clk 0:01:51]} 29. Ne2 {[%clk 0:00:45]}  Rg6 {[%clk 0:01:48]} 30. N2d4 {[%clk 0:00:42]}  Qa4 {[%clk 0:01:42]} 31. h3 {[%clk 0:00:29]}  Qd1+ {[%clk 0:01:35]} 32. Kh2 {[%clk 0:00:28]}  Qf1 {[%clk 0:01:35]} 33. Ng5 {[%clk 0:00:26]}  Rf8 {[%clk 0:01:28]} 34. Nde6 {[%clk 0:00:17]}  Qd3 {[%clk 0:01:20]} 35. Qxa7 {[%clk 0:00:15]}  Qxd5 {[%clk 0:01:14]} 36. Nxf8 {[%clk 0:00:14]}  Kxf8 {[%clk 0:01:13]} 37. Qb8+ {[%clk 0:00:13]}  Kg7 {[%clk 0:00:52]} 38. Qc7+ {[%clk 0:00:14]}  Kf8 {[%clk 0:00:52]} 39. Qd8+ {[%clk 0:00:10]}  Kg7 {[%clk 0:00:50]} 40. Qe7+ {[%clk 0:00:09]}  Kg8 {[%clk 0:00:50]} 41. Qh7+ {[%clk 0:00:09]}  Kf8 {[%clk 0:00:50]} 42. Qxg6 {[%clk 0:00:09]}  Ke7 {[%clk 0:00:43]} 43. Qg7+ {[%clk 0:00:08]}  Ke8 {[%clk 0:00:42]} 44. Nh7 {[%clk 0:00:06]}  Qf7 {[%clk 0:00:40]} 45. Nf6+ {[%clk 0:00:05]}  Ke7 {[%clk 0:00:41]} 46. Nd5+ {[%clk 0:00:05]}  Ke6 {[%clk 0:00:39]} 47. Qxf7+ {[%clk 0:00:04]}  Kxf7 {[%clk 0:00:38]} 48. Ne3 {[%clk 0:00:05]}  Ke6 {[%clk 0:00:36]} 49. Nxc4 {[%clk 0:00:05]}  Kd5 {[%clk 0:00:36]} 50. Ne3+ {[%clk 0:00:05]}  Ke4 {[%clk 0:00:36]} 51. Nxf5 {[%clk 0:00:05]}  Kxf5 {[%clk 0:00:33]} 52. Kg3 {[%clk 0:00:06]}  d5 {[%clk 0:00:31]} 53. b4 {[%clk 0:00:05]}  Ke4 {[%clk 0:00:27]} 54. b5 {[%clk 0:00:02]}  Ke3 {[%clk 0:00:24]} 55. a6 {[%clk 0:00:01]}  bxa6 {[%clk 0:00:21]} 56. bxa6 {[%clk 0:00:02]}  h4+ {[%clk 0:00:20]} 57. Kxh4 {[%clk 0:00:02]}  d4 {[%clk 0:00:20]} 58. a7 {[%clk 0:00:03]}  d3 {[%clk 0:00:20]} 59. a8=Q {[%clk 0:00:04]}  d2 {[%clk 0:00:21]} 60. Qe8+ {[%clk 0:00:04]}  Kf2 {[%clk 0:00:21]} 61. Qd7 {[%clk 0:00:05]}  Ke2 {[%clk 0:00:20]} 62. Qxd2+ {[%clk 0:00:05]}  Kxd2 {[%clk 0:00:20]} 63. f5 {[%clk 0:00:06]}  Ke3 {[%clk 0:00:21]} 64. f6 {[%clk 0:00:07]}  Ke4 {[%clk 0:00:22]} 65. f7 {[%clk 0:00:08]}  Ke5 {[%clk 0:00:23]} 66. f8=Q {[%clk 0:00:08]}  Ke6 {[%clk 0:00:23]} 67. Qf3 {[%clk 0:00:09]}  Ke5 {[%clk 0:00:24]} 68. g4 {[%clk 0:00:09]}  Kd4 {[%clk 0:00:25]} 69. g5 {[%clk 0:00:10]}  Ke5 {[%clk 0:00:26]} 70. g6 {[%clk 0:00:11]}  Ke6 {[%clk 0:00:26]} 71. g7 {[%clk 0:00:11]}  Ke5 {[%clk 0:00:27]} 72. g8=Q {[%clk 0:00:11]}  Kd4 {[%clk 0:00:28]} 73. Qgg4+ {[%clk 0:00:11]}  Ke5 {[%clk 0:00:29]} 74. Qff5+ {[%clk 0:00:11]}  Kd6 {[%clk 0:00:30]} 75. Qgg6+ {[%clk 0:00:12]}  Ke7 {[%clk 0:00:31]} 76. Qff7+ {[%clk 0:00:12]}  Kd8 {[%clk 0:00:31]} 77. Qgg8# {[%clk 0:00:12]} 1-0

[Event "December 12 Late 2023"]
[Site "https://www.chess.com"]
[Date "2023.12.12"]
[Round "1"]
[White "Spata, German"]
[Black "Guimaraes, Wagner Peixoto"]
[Result "1-0"]
[Board "113"]
[TimeControl "180+1"]
[WhiteFideId "113026"]
[BlackFideId "2100940"]
[WhiteElo "2620"]
[BlackElo "2280"]
[WhiteTeam "ARG"]
[BlackTeam "BRA"]
[WhiteClock "0:00:22"]
[BlackClock "0:00:08"]

1. Nf3 {[%clk 0:02:57]}  Nf6 {[%clk 0:02:59]} 2. b3 {[%clk 0:02:56]}  e6 {[%clk 0:02:59]} 3. Bb2 {[%clk 0:02:55]}  b6 {[%clk 0:02:59]} 4. e3 {[%clk 0:02:53]}  Bb7 {[%clk 0:02:59]} 5. Be2 {[%clk 0:02:50]}  Be7 {[%clk 0:02:59]} 6. O-O {[%clk 0:02:49]}  O-O {[%clk 0:03:00]} 7. c4 {[%clk 0:02:43]}  c5 {[%clk 0:03:00]} 8. Nc3 {[%clk 0:02:39]}  d5 {[%clk 0:02:59]} 9. cxd5 {[%clk 0:02:39]}  Nxd5 {[%clk 0:03:00]} 10. d3 {[%clk 0:02:34]}  Nc6 {[%clk 0:02:58]} 11. a3 {[%clk 0:02:27]}  Bf6 {[%clk 0:02:52]} 12. Rc1 {[%clk 0:02:25]}  Nxc3 {[%clk 0:02:51]} 13. Bxc3 {[%clk 0:02:24]}  Bxc3 {[%clk 0:02:52]} 14. Rxc3 {[%clk 0:02:25]}  Qf6 {[%clk 0:02:53]} 15. Rc2 {[%clk 0:02:17]}  Rfd8 {[%clk 0:02:48]} 16. Qb1 {[%clk 0:02:14]}  Rac8 {[%clk 0:02:39]} 17. b4 {[%clk 0:02:06]}  Ne7 {[%clk 0:01:51]} 18. bxc5 {[%clk 0:02:03]}  Bxf3 {[%clk 0:01:51]} 19. Bxf3 {[%clk 0:01:57]}  Rxc5 {[%clk 0:01:48]} 20. Rxc5 {[%clk 0:01:56]}  bxc5 {[%clk 0:01:48]} 21. Qb7 {[%clk 0:01:34]}  g6 {[%clk 0:01:27]} 22. Qxa7 {[%clk 0:01:31]}  Rxd3 {[%clk 0:01:20]} 23. Qxc5 {[%clk 0:01:31]}  Rc3 {[%clk 0:01:11]} 24. Qb4 {[%clk 0:01:26]}  Nd5 {[%clk 0:01:04]} 25. Bxd5 {[%clk 0:01:23]}  exd5 {[%clk 0:01:05]} 26. a4 {[%clk 0:01:20]}  Rc2 {[%clk 0:00:51]} 27. Qb3 {[%clk 0:01:16]}  Qc6 {[%clk 0:00:46]} 28. a5 {[%clk 0:01:08]}  Rc1 {[%clk 0:00:37]} 29. Qb8+ {[%clk 0:01:08]}  Kg7 {[%clk 0:00:35]} 30. Qb2+ {[%clk 0:01:04]}  Rc3 {[%clk 0:00:35]} 31. a6 {[%clk 0:00:48]}  Kh6 {[%clk 0:00:23]} 32. a7 {[%clk 0:00:41]}  Rc4 {[%clk 0:00:19]} 33. Ra1 {[%clk 0:00:28]}  Qa8 {[%clk 0:00:15]} 34. g3 {[%clk 0:00:23]}  Rc7 {[%clk 0:00:12]} 35. Qb6 {[%clk 0:00:23]}  Rb7 {[%clk 0:00:08]} 36. Qxb7 {[%clk 0:00:22]} 1-0

[Event "December 12 Late 2023"]
[Site "https://www.chess.com"]
[Date "2023.12.12"]
[Round "1"]
[White "Lopez Del Alamo, Antonio"]
[Black "Boyer, Mahel"]
[Result "0-1"]
[Board "114"]
[TimeControl "180+1"]
[WhiteFideId "2227339"]
[BlackFideId "45102422"]
[WhiteElo "2275"]
[BlackElo "2619"]
[WhiteTeam "ESP"]
[BlackTeam "FRA"]
[WhiteClock "0:00:00"]
[BlackClock "0:00:03"]

1. e4 {[%clk 0:03:00]}  Nc6 {[%clk 0:02:18]} 2. Nc3 {[%clk 0:02:58]}  d5 {[%clk 0:02:19]} 3. Nxd5 {[%clk 0:02:50]}  f5 {[%clk 0:02:19]} 4. d3 {[%clk 0:02:43]}  Nf6 {[%clk 0:02:18]} 5. Nxf6+ {[%clk 0:02:34]}  exf6 {[%clk 0:02:19]} 6. Nf3 {[%clk 0:02:28]}  fxe4 {[%clk 0:02:16]} 7. dxe4 {[%clk 0:02:28]}  Qxd1+ {[%clk 0:02:17]} 8. Kxd1 {[%clk 0:02:27]}  Bg4 {[%clk 0:02:18]} 9. Be2 {[%clk 0:02:24]}  O-O-O+ {[%clk 0:02:17]} 10. Bd2 {[%clk 0:02:19]}  Bc5 {[%clk 0:02:12]} 11. Rf1 {[%clk 0:02:08]}  Rhe8 {[%clk 0:02:10]} 12. h3 {[%clk 0:02:00]}  Bh5 {[%clk 0:01:59]} 13. g4 {[%clk 0:01:40]}  Bg6 {[%clk 0:01:56]} 14. Bd3 {[%clk 0:01:26]}  Bxe4 {[%clk 0:01:51]} 15. Bxe4 {[%clk 0:01:26]}  Rxe4 {[%clk 0:01:52]} 16. Re1 {[%clk 0:01:26]}  Rxe1+ {[%clk 0:01:06]} 17. Kxe1 {[%clk 0:01:27]}  Nd4 {[%clk 0:01:07]} 18. Nxd4 {[%clk 0:01:26]}  Bxd4 {[%clk 0:01:08]} 19. c3 {[%clk 0:01:25]}  Bxf2+ {[%clk 0:01:08]} 20. Ke2 {[%clk 0:01:16]}  Bg3 {[%clk 0:01:03]} 21. Rf1 {[%clk 0:01:05]}  Be5 {[%clk 0:00:45]} 22. h4 {[%clk 0:00:59]}  b6 {[%clk 0:00:39]} 23. h5 {[%clk 0:00:43]}  Kd7 {[%clk 0:00:38]} 24. g5 {[%clk 0:00:34]}  Ke6 {[%clk 0:00:35]} 25. Rg1 {[%clk 0:00:21]}  fxg5 {[%clk 0:00:26]} 26. Bxg5 {[%clk 0:00:20]}  Rd5 {[%clk 0:00:22]} 27. Be3 {[%clk 0:00:19]}  Rb5 {[%clk 0:00:20]} 28. b3 {[%clk 0:00:18]}  Bxc3 {[%clk 0:00:19]} 29. h6 {[%clk 0:00:18]}  gxh6 {[%clk 0:00:17]} 30. Rh1 {[%clk 0:00:18]}  h5 {[%clk 0:00:15]} 31. Kd3 {[%clk 0:00:18]}  Bf6 {[%clk 0:00:15]} 32. Kc4 {[%clk 0:00:18]}  Re5 {[%clk 0:00:15]} 33. Kd3 {[%clk 0:00:17]}  h4 {[%clk 0:00:13]} 34. Bf4 {[%clk 0:00:14]}  Ra5 {[%clk 0:00:11]} 35. a4 {[%clk 0:00:14]}  Kf5 {[%clk 0:00:10]} 36. Bxc7 {[%clk 0:00:14]}  Rd5+ {[%clk 0:00:08]} 37. Ke2 {[%clk 0:00:14]}  Rc5 {[%clk 0:00:09]} 38. Bb8 {[%clk 0:00:12]}  Rc2+ {[%clk 0:00:08]} 39. Kd3 {[%clk 0:00:13]}  Rc3+ {[%clk 0:00:08]} 40. Kd2 {[%clk 0:00:13]}  Rxb3 {[%clk 0:00:05]} 41. Bxa7 {[%clk 0:00:13]}  h3 {[%clk 0:00:04]} 42. Kc2 {[%clk 0:00:11]}  Ra3 {[%clk 0:00:02]} 43. Bxb6 {[%clk 0:00:09]}  Be5 {[%clk 0:00:02]} 44. a5 {[%clk 0:00:08]}  h2 {[%clk 0:00:02]} 45. Kd2 {[%clk 0:00:05]}  Ra1 {[%clk 0:00:03]} 46. Rxh2 {[%clk 0:00:00]}  Bxh2 {[%clk 0:00:03]} 0-1

[Event "December 12 Late 2023"]
[Site "https://www.chess.com"]
[Date "2023.12.12"]
[Round "1"]
[White "Olsen, Filip Boe"]
[Black "Mejia, Cherry Ann"]
[Result "1-0"]
[Board "115"]
[TimeControl "180+1"]
[WhiteFideId "1440640"]
[BlackFideId "5206880"]
[WhiteElo "2613"]
[BlackElo "2267"]
[WhiteTeam "DEN"]
[BlackTeam "PHI"]
[WhiteClock "0:00:25"]
[BlackClock "0:00:00"]

1. c4 {[%clk 0:03:00]}  e5 {[%clk 0:02:59]} 2. d3 {[%clk 0:03:00]}  Nc6 {[%clk 0:02:59]} 3. Nf3 {[%clk 0:02:59]}  g6 {[%clk 0:02:59]} 4. g3 {[%clk 0:02:59]}  Bg7 {[%clk 0:02:57]} 5. Bg2 {[%clk 0:02:59]}  d6 {[%clk 0:02:57]} 6. O-O {[%clk 0:02:59]}  Be6 {[%clk 0:02:57]} 7. Nc3 {[%clk 0:02:59]}  h6 {[%clk 0:02:56]} 8. Rb1 {[%clk 0:02:53]}  Qd7 {[%clk 0:02:57]} 9. Nd5 {[%clk 0:02:48]}  Nd8 {[%clk 0:02:56]} 10. b4 {[%clk 0:02:45]}  c6 {[%clk 0:02:56]} 11. Nc3 {[%clk 0:02:41]}  Ne7 {[%clk 0:02:56]} 12. b5 {[%clk 0:02:41]}  O-O {[%clk 0:02:53]} 13. bxc6 {[%clk 0:02:39]}  bxc6 {[%clk 0:02:52]} 14. Qc2 {[%clk 0:02:02]}  Kh7 {[%clk 0:02:50]} 15. Bb2 {[%clk 0:01:56]}  f5 {[%clk 0:02:50]} 16. Nd1 {[%clk 0:01:40]}  g5 {[%clk 0:02:49]} 17. c5 {[%clk 0:01:40]}  Nf7 {[%clk 0:02:26]} 18. cxd6 {[%clk 0:01:39]}  Qxd6 {[%clk 0:02:27]} 19. Ne3 {[%clk 0:01:39]}  Ng6 {[%clk 0:02:15]} 20. Nc4 {[%clk 0:01:31]}  Qd7 {[%clk 0:01:57]} 21. Rfc1 {[%clk 0:01:27]}  Bd5 {[%clk 0:01:55]} 22. Ne3 {[%clk 0:01:23]}  g4 {[%clk 0:01:50]} 23. Nd2 {[%clk 0:01:22]}  Bxg2 {[%clk 0:01:49]} 24. Nxg2 {[%clk 0:01:16]}  Rac8 {[%clk 0:01:43]} 25. Ba3 {[%clk 0:01:16]}  Rfd8 {[%clk 0:01:42]} 26. Qb3 {[%clk 0:01:11]}  Ng5 {[%clk 0:01:40]} 27. Qb7 {[%clk 0:00:52]}  Rc7 {[%clk 0:01:36]} 28. Qb4 {[%clk 0:00:52]}  Nh3+ {[%clk 0:01:33]} 29. Kf1 {[%clk 0:00:52]}  Bf8 {[%clk 0:01:21]} 30. Qb3 {[%clk 0:00:48]}  Qd4 {[%clk 0:01:14]} 31. Ne3 {[%clk 0:00:35]}  Nxf2 {[%clk 0:00:53]} 32. Nc2 {[%clk 0:00:30]}  Qd7 {[%clk 0:00:17]} 33. Kxf2 {[%clk 0:00:30]}  f4 {[%clk 0:00:14]} 34. Ne4 {[%clk 0:00:30]}  fxg3+ {[%clk 0:00:09]} 35. hxg3 {[%clk 0:00:30]}  Qf5+ {[%clk 0:00:07]} 36. Kg2 {[%clk 0:00:30]}  Bxa3 {[%clk 0:00:04]} 37. Qxa3 {[%clk 0:00:29]}  Rf7 {[%clk 0:00:04]} 38. Rf1 {[%clk 0:00:28]}  Qe6 {[%clk 0:00:04]} 39. Ne3 {[%clk 0:00:27]}  Rdf8 {[%clk 0:00:03]} 40. Rxf7+ {[%clk 0:00:25]}  Rxf7 {[%clk 0:00:03]} 41. Rh1 {[%clk 0:00:25]}  Nf4+ {[%clk 0:00:03]} 42. gxf4 {[%clk 0:00:25]}  exf4 {[%clk 0:00:00]} 43. Ng5+ {[%clk 0:00:25]} 1-0

[Event "December 12 Late 2023"]
[Site "https://www.chess.com"]
[Date "2023.12.12"]
[Round "1"]
[White "Minina, Veronika"]
[Black "Ambartsumova, Karina"]
[Result "0-1"]
[Board "116"]
[TimeControl "180+1"]
[WhiteFideId "4174780"]
[BlackFideId "4166299"]
[WhiteElo "2259"]
[BlackElo "2612"]
[WhiteTeam "RUS"]
[BlackTeam "RUS"]
[WhiteClock "0:00:02"]
[BlackClock "0:01:45"]

1. Nf3 {[%clk 0:03:00]}  Nf6 {[%clk 0:03:00]} 2. g3 {[%clk 0:03:00]}  g6 {[%clk 0:03:00]} 3. Bg2 {[%clk 0:02:57]}  Bg7 {[%clk 0:03:00]} 4. c4 {[%clk 0:02:54]}  O-O {[%clk 0:03:01]} 5. O-O {[%clk 0:02:55]}  d6 {[%clk 0:03:01]} 6. d4 {[%clk 0:02:56]}  c6 {[%clk 0:02:59]} 7. Nc3 {[%clk 0:02:55]}  Bf5 {[%clk 0:02:59]} 8. Re1 {[%clk 0:02:36]}  Ne4 {[%clk 0:02:59]} 9. Qb3 {[%clk 0:02:16]}  Nxc3 {[%clk 0:02:51]} 10. bxc3 {[%clk 0:02:15]}  Qc8 {[%clk 0:02:41]} 11. e4 {[%clk 0:02:14]}  Be6 {[%clk 0:02:39]} 12. d5 {[%clk 0:02:11]}  Bd7 {[%clk 0:02:39]} 13. Bg5 {[%clk 0:01:55]}  Re8 {[%clk 0:02:38]} 14. Rac1 {[%clk 0:01:37]}  Na6 {[%clk 0:02:37]} 15. e5 {[%clk 0:01:25]}  Nc5 {[%clk 0:02:37]} 16. Qd1 {[%clk 0:01:17]}  cxd5 {[%clk 0:02:02]} 17. cxd5 {[%clk 0:01:13]}  dxe5 {[%clk 0:01:59]} 18. Nxe5 {[%clk 0:01:05]}  Bxe5 {[%clk 0:01:57]} 19. Rxe5 {[%clk 0:00:52]}  f6 {[%clk 0:01:57]} 20. Rxe7 {[%clk 0:00:19]}  Rxe7 {[%clk 0:01:51]} 21. Bxf6 {[%clk 0:00:19]}  Rf7 {[%clk 0:01:52]} 22. Qd4 {[%clk 0:00:14]}  Qf8 {[%clk 0:01:47]} 23. Be5 {[%clk 0:00:11]}  Re8 {[%clk 0:01:47]} 24. d6 {[%clk 0:00:09]}  Rxe5 {[%clk 0:01:45]} 25. Qxe5 {[%clk 0:00:02]}  Nd3 {[%clk 0:01:45]} 0-1

[Event "December 12 Late 2023"]
[Site "https://www.chess.com"]
[Date "2023.12.12"]
[Round "1"]
[White "Crevatin, Leo"]
[Black "Golubenko, Valentina"]
[Result "1-0"]
[Board "117"]
[TimeControl "180+1"]
[WhiteFideId "1726307"]
[BlackFideId "4501993"]
[WhiteElo "2611"]
[BlackElo "2259"]
[WhiteTeam "SWE"]
[BlackTeam "CRO"]
[WhiteClock "0:01:11"]
[BlackClock "0:00:07"]

1. e4 {[%clk 0:02:59]}  e6 {[%clk 0:02:59]} 2. d4 {[%clk 0:02:57]}  d5 {[%clk 0:02:56]} 3. e5 {[%clk 0:02:57]}  c5 {[%clk 0:02:56]} 4. c3 {[%clk 0:02:58]}  Nc6 {[%clk 0:02:53]} 5. Nf3 {[%clk 0:02:58]}  a6 {[%clk 0:02:47]} 6. Be2 {[%clk 0:02:56]}  cxd4 {[%clk 0:02:38]} 7. cxd4 {[%clk 0:02:55]}  Nge7 {[%clk 0:02:39]} 8. Na3 {[%clk 0:02:54]}  Nf5 {[%clk 0:02:35]} 9. Nc2 {[%clk 0:02:52]}  Be7 {[%clk 0:02:30]} 10. O-O {[%clk 0:02:51]}  O-O {[%clk 0:02:30]} 11. Rb1 {[%clk 0:02:48]}  b5 {[%clk 0:02:29]} 12. h3 {[%clk 0:02:34]}  Bd7 {[%clk 0:02:19]} 13. Bf4 {[%clk 0:02:31]}  Rc8 {[%clk 0:02:09]} 14. Qd2 {[%clk 0:02:29]}  Na5 {[%clk 0:01:53]} 15. b3 {[%clk 0:02:28]}  Nc6 {[%clk 0:01:53]} 16. Ne3 {[%clk 0:02:26]}  Nxe3 {[%clk 0:01:45]} 17. Bxe3 {[%clk 0:02:27]}  f5 {[%clk 0:01:10]} 18. exf6 {[%clk 0:02:26]}  Bxf6 {[%clk 0:01:10]} 19. Rbc1 {[%clk 0:02:25]}  Qe7 {[%clk 0:01:08]} 20. Rfe1 {[%clk 0:02:20]}  Qb4 {[%clk 0:01:01]} 21. Qb2 {[%clk 0:02:09]}  Qd6 {[%clk 0:00:51]} 22. Red1 {[%clk 0:02:04]}  e5 {[%clk 0:00:47]} 23. Rxc6 {[%clk 0:01:51]}  Qxc6 {[%clk 0:00:43]} 24. dxe5 {[%clk 0:01:52]}  Be7 {[%clk 0:00:37]} 25. Nd4 {[%clk 0:01:51]}  Qc3 {[%clk 0:00:22]} 26. Qxc3 {[%clk 0:01:51]}  Rxc3 {[%clk 0:00:22]} 27. Bf3 {[%clk 0:01:52]}  Kh8 {[%clk 0:00:16]} 28. Bxd5 {[%clk 0:01:52]}  Bc5 {[%clk 0:00:15]} 29. e6 {[%clk 0:01:44]}  Bc8 {[%clk 0:00:15]} 30. b4 {[%clk 0:01:16]}  Bxb4 {[%clk 0:00:13]} 31. Nc6 {[%clk 0:01:16]}  Bd6 {[%clk 0:00:10]} 32. e7 {[%clk 0:01:14]}  Re8 {[%clk 0:00:10]} 33. Bf7 {[%clk 0:01:14]}  Rxe7 {[%clk 0:00:11]} 34. Rxd6 {[%clk 0:01:12]}  Bd7 {[%clk 0:00:07]} 35. Nxe7 {[%clk 0:01:11]} 1-0

[Event "December 12 Late 2023"]
[Site "https://www.chess.com"]
[Date "2023.12.12"]
[Round "1"]
[White "Olenik Campa, Rudi"]
[Black "Boder, Jan"]
[Result "1-0"]
[Board "119"]
[TimeControl "180+1"]
[WhiteFideId "14633264"]
[BlackFideId "16243226"]
[WhiteElo "2598"]
[BlackElo "2255"]
[WhiteTeam "SLO"]
[BlackTeam "GER"]
[WhiteClock "0:00:39"]
[BlackClock "0:00:07"]

1. e4 {[%clk 0:03:00]}  e5 {[%clk 0:02:59]} 2. Nf3 {[%clk 0:03:00]}  Nc6 {[%clk 0:02:59]} 3. Bb5 {[%clk 0:03:01]}  a6 {[%clk 0:02:59]} 4. Ba4 {[%clk 0:03:01]}  Nf6 {[%clk 0:02:58]} 5. O-O {[%clk 0:02:58]}  Be7 {[%clk 0:02:59]} 6. Re1 {[%clk 0:02:58]}  b5 {[%clk 0:02:58]} 7. Bb3 {[%clk 0:02:58]}  O-O {[%clk 0:02:59]} 8. d4 {[%clk 0:02:51]}  Nxd4 {[%clk 0:02:50]} 9. Nxd4 {[%clk 0:02:37]}  exd4 {[%clk 0:02:51]} 10. e5 {[%clk 0:02:37]}  Ne8 {[%clk 0:02:50]} 11. Qxd4 {[%clk 0:02:36]}  c5 {[%clk 0:02:49]} 12. Qe4 {[%clk 0:02:34]}  Rb8 {[%clk 0:02:49]} 13. c4 {[%clk 0:02:34]}  Bb7 {[%clk 0:02:48]} 14. Qg4 {[%clk 0:02:32]}  d6 {[%clk 0:02:43]} 15. e6 {[%clk 0:02:29]}  Nf6 {[%clk 0:02:28]} 16. Qf5 {[%clk 0:02:24]}  b4 {[%clk 0:02:21]} 17. Bg5 {[%clk 0:02:21]}  Bc8 {[%clk 0:02:20]} 18. exf7+ {[%clk 0:01:57]}  Rxf7 {[%clk 0:02:20]} 19. Qd3 {[%clk 0:01:56]}  Bb7 {[%clk 0:01:55]} 20. Nd2 {[%clk 0:01:55]}  Ng4 {[%clk 0:01:55]} 21. Bxe7 {[%clk 0:01:52]}  Rxe7 {[%clk 0:01:56]} 22. Bc2 {[%clk 0:01:50]}  g6 {[%clk 0:01:51]} 23. Ne4 {[%clk 0:01:41]}  Bxe4 {[%clk 0:01:49]} 24. Rxe4 {[%clk 0:01:42]}  Ne5 {[%clk 0:01:48]} 25. Qd5+ {[%clk 0:01:41]}  Kg7 {[%clk 0:01:48]} 26. Rae1 {[%clk 0:01:37]}  Rbb7 {[%clk 0:01:46]} 27. f4 {[%clk 0:01:37]}  Nf7 {[%clk 0:01:44]} 28. f5 {[%clk 0:01:34]}  Rxe4 {[%clk 0:01:26]} 29. Rxe4 {[%clk 0:01:32]}  Re7 {[%clk 0:01:26]} 30. fxg6 {[%clk 0:01:31]}  hxg6 {[%clk 0:01:12]} 31. Rg4 {[%clk 0:01:09]}  Ne5 {[%clk 0:01:07]} 32. Rg3 {[%clk 0:01:02]}  Rf7 {[%clk 0:01:03]} 33. h3 {[%clk 0:01:01]}  Qf6 {[%clk 0:01:03]} 34. Kh2 {[%clk 0:01:00]}  Re7 {[%clk 0:00:47]} 35. Qe4 {[%clk 0:00:59]}  Re6 {[%clk 0:00:46]} 36. a3 {[%clk 0:00:56]}  a5 {[%clk 0:00:46]} 37. axb4 {[%clk 0:00:56]}  axb4 {[%clk 0:00:47]} 38. b3 {[%clk 0:00:52]}  Nf7 {[%clk 0:00:44]} 39. Qd3 {[%clk 0:00:47]}  Ne5 {[%clk 0:00:43]} 40. Qe4 {[%clk 0:00:46]}  Qf7 {[%clk 0:00:44]} 41. h4 {[%clk 0:00:43]}  Rf6 {[%clk 0:00:42]} 42. h5 {[%clk 0:00:43]}  Rf4 {[%clk 0:00:42]} 43. hxg6 {[%clk 0:00:42]}  Qf6 {[%clk 0:00:37]} 44. Qb7+ {[%clk 0:00:42]}  Kg8 {[%clk 0:00:09]} 45. Qh7+ {[%clk 0:00:39]}  Kf8 {[%clk 0:00:10]} 46. g7+ {[%clk 0:00:40]}  Ke7 {[%clk 0:00:09]} 47. g8=Q+ {[%clk 0:00:41]}  Nf7 {[%clk 0:00:07]} 48. Re3+ {[%clk 0:00:39]} 1-0